fUSD/lending_fUSD_20260526
["ID","MTS","AMOUNT","RATE_DAILY","PERIOD"]
[423023640,1779763849000,-169.308741,0.00021675,2]
[423023638,1779763849000,-169.308741,0.00021675,2]
[423023645,1779763849000,-151.0,0.00021675,2]
[423023649,1779763849000,-693.39197629,0.00021675,2]
[423023592,1779763849000,-151.0,0.00021565,2]
[423023621,1779763849000,-289.15744,0.00021675,2]
[423023588,1779763849000,-303.63568124,0.00021565,2]
[423023563,1779763849000,-151.0,0.000214,2]
[423023598,1779763849000,-151.0,0.0002162,2]
[423023651,1779763849000,-151.0,0.00021675,2]
[423023558,1779763849000,-151.0,0.000214,2]
[423023562,1779763849000,-151.0,0.000214,2]
[423023560,1779763849000,-152.0,0.000214,2]
[423023561,1779763849000,-500.0,0.000214,2]
[423023559,1779763849000,-151.0,0.000214,2]
[423023565,1779763849000,-152.0,0.000214,2]
[423023564,1779763849000,-500.0,0.000214,2]
[423023567,1779763849000,-151.0,0.000214,2]
[423023580,1779763849000,-373.07297731,0.0002151,2]
[423023589,1779763849000,-644.79446245,0.00021565,2]
[423023578,1779763849000,-8260.13072238,0.00021455,2]
[423023568,1779763849000,-151.0,0.000214,2]
[423023569,1779763849000,-488.0,0.00021443,5]
[423023574,1779763849000,-599.60298507,0.00021455,2]
[423023576,1779763849000,-151.0,0.00021455,2]
[423023572,1779763849000,-359.76179104,0.00021455,2]
[423023566,1779763849000,-151.0,0.000214,2]
[423023586,1779763849000,-8565.75555911,0.0002151,2]
[423023596,1779763849000,-668.65185756,0.0002162,2]
[423023584,1779763849000,-151.0,0.0002151,2]
[423023594,1779763849000,-8882.6885148,0.00021565,2]
[423023582,1779763849000,-621.78829552,0.0002151,2]
[423023653,1779763849000,-9552.16786547,0.00021675,2]
[423023619,1779763849000,-289.15744,0.00021675,2]
[423023657,1779763849000,-2041.593492,0.0002173,2]
[423023704,1779763849000,-879.23,0.000219,2]
[423023702,1779763849000,-5135.67,0.000219,2]
[423023706,1779763849000,-500.0,0.000219,2]
[423023720,1779763849000,-151.0,0.00021918,2]
[423023722,1779763849000,-166.27,0.00021918,2]
[423023708,1779763849000,-5000.0,0.00021918,2]
[423023726,1779763849000,-300.0,0.00021918,2]
[423023731,1779763849000,-300.0,0.00021918,2]
[423023730,1779763849000,-300.0,0.00021918,2]
[423023728,1779763849000,-300.0,0.00021918,2]
[423023716,1779763849000,-151.0,0.00021918,2]
[423023733,1779763849000,-300.0,0.00021918,2]
[423023724,1779763849000,-300.0,0.00021918,2]
[423023735,1779763849000,-300.0,0.00021918,2]
[423023732,1779763849000,-300.0,0.00021918,2]
[423023736,1779763849000,-300.0,0.00021918,2]
[423023738,1779763849000,-300.0,0.00021918,2]
[423023737,1779763849000,-300.0,0.00021918,2]
[423023739,1779763849000,-385.15139776,0.00021918,2]
[423023741,1779763849000,-181.08010149,0.00021948,2]
[423023740,1779763849000,-162.77,0.00021925,2]
[423023655,1779763849000,-2041.593492,0.0002173,2]
[423023734,1779763849000,-300.0,0.00021918,2]
[423023718,1779763849000,-151.0,0.00021918,2]
[423023742,1779763849000,-290.26104002,0.00021948,2]
[423023712,1779763849000,-151.0,0.00021918,2]
[423023714,1779763849000,-270.056442,0.00021918,2]
[423023669,1779763849000,-416.0,0.00021783,2]
[423023671,1779763849000,-745.65223615,0.00021785,2]
[423023661,1779763849000,-2041.593492,0.0002173,2]
[423023665,1779763849000,-151.0,0.0002173,2]
[423023663,1779763849000,-719.04747942,0.0002173,2]
[423023667,1779763849000,-9905.59807649,0.0002173,2]
[423023674,1779763849000,-151.0,0.00021785,2]
[423023678,1779763849000,-470.0,0.0002179,5]
[423023680,1779763849000,-151.0,0.00021828,2]
[423023676,1779763849000,-10272.10520532,0.00021785,2]
[423023659,1779763849000,-2041.593492,0.0002173,2]
[423023690,1779763849000,-3133.28531061,0.00021887,2]
[423023688,1779763849000,-10652.17309792,0.0002184,2]
[423023686,1779763849000,-151.0,0.0002184,2]
[423023694,1779763849000,-151.0,0.00021895,2]
[423023696,1779763849000,-11046.30350254,0.00021895,2]
[423023684,1779763849000,-773.24136889,0.0002184,2]
[423023698,1779763849000,-6200.0,0.000219,7]
[423023692,1779763849000,-801.85129954,0.00021895,2]
[423023700,1779763849000,-1000.0,0.000219,7]
[423023710,1779763849000,-151.0,0.00021918,2]
[423023682,1779763849000,-151.0,0.00021828,2]
[423023775,1779763850000,-3000.0,0.00022048,7]
[423023778,1779763850000,-12318.36988822,0.0002206,2]
[423023773,1779763850000,-11878.85235123,0.00022005,2]
[423023769,1779763850000,-1000.0,0.00022003,2]
[423023770,1779763850000,-151.0,0.00022005,2]
[423023772,1779763850000,-151.0,0.00022005,2]
[423023771,1779763850000,-862.28603014,0.00022005,2]
[423023774,1779763850000,-3000.0,0.00022048,2]
[423023776,1779763850000,-894.19061325,0.0002206,2]
[423023783,1779763850000,-167.478335,0.00022115,2]
[423023779,1779763850000,-169.308741,0.00022115,2]
[423023780,1779763850000,-169.308741,0.00022115,2]
[423023782,1779763850000,-169.308741,0.00022115,2]
[423023785,1779763850000,-167.478335,0.00022115,2]
[423023784,1779763850000,-167.478335,0.00022115,2]
[423023786,1779763850000,-167.478335,0.00022115,2]
[423023781,1779763850000,-169.308741,0.00022115,2]
[423023789,1779763850000,-12774.14957409,0.00022115,2]
[423023787,1779763850000,-927.27566594,0.00022115,2]
[423023767,1779763850000,-1000.0,0.00022003,2]
[423023777,1779763850000,-151.0,0.0002206,2]
[423023768,1779763850000,-1000.0,0.00022003,2]
[423023756,1779763850000,-450.0,0.00022,2]
[423023765,1779763850000,-1000.0,0.00022003,2]
[423023791,1779763850000,-289.15744,0.0002217,2]
[423023744,1779763850000,-771.01748644,0.00021948,2]
[423023743,1779763850000,-200.0,0.00021948,2]
[423023746,1779763850000,-181.08010149,0.00021948,2]
[423023749,1779763850000,-599.60298507,0.00021948,2]
[423023745,1779763850000,-1798.80895522,0.00021948,2]
[423023747,1779763850000,-181.08010149,0.00021948,2]
[423023748,1779763850000,-181.08010149,0.00021948,2]
[423023751,1779763850000,-200.0,0.00021948,2]
[423023752,1779763850000,-831.51979762,0.0002195,2]
[423023764,1779763850000,-773.51,0.00022,2]
[423023753,1779763850000,-151.0,0.0002195,2]
[423023754,1779763850000,-11455.01673214,0.0002195,2]
[423023755,1779763850000,-500.0,0.00022,10]
[423023758,1779763850000,-965.0,0.00022,2]
[423023759,1779763850000,-154.5360428,0.00022,2]
[423023757,1779763850000,-257.0,0.00022,2]
[423023761,1779763850000,-830.0,0.00022,2]
[423023760,1779763850000,-179.0,0.00022,2]
[423023762,1779763850000,-1597.0,0.00022,2]
[423023766,1779763850000,-1000.0,0.00022003,2]
[423023763,1779763850000,-342.0,0.00022,2]
[423023750,1779763850000,-1235.18214925,0.00021948,2]
[423023790,1779763850000,-289.15744,0.0002217,2]
[423023788,1779763850000,-151.0,0.00022115,2]
[423023793,1779763850000,-289.15744,0.0002217,2]
[423023818,1779763850000,-150.0,0.0002247,2]
[423023821,1779763850000,-150.142,0.0002249,2]
[423023822,1779763850000,-187.78006524,0.00022496,2]
[423023825,1779763850000,-799.54513344,0.00022496,2]
[423023823,1779763850000,-301.0006985,0.00022496,2]
[423023828,1779763850000,-187.78006524,0.00022496,2]
[423023824,1779763850000,-200.0,0.00022496,2]
[423023827,1779763850000,-187.78006524,0.00022496,2]
[423023826,1779763850000,-1865.36488656,0.00022496,2]
[423023829,1779763850000,-187.78006524,0.00022496,2]
[423023820,1779763850000,-150.0,0.0002249,2]
[423023832,1779763850000,-1280.88388877,0.00022496,2]
[423023834,1779763850000,-168.45,0.0002269,2]
[423023831,1779763850000,-200.0,0.00022496,2]
[423023833,1779763850000,-151.0,0.00022665,2]
[423023836,1779763850000,-181.08010149,0.00022769,2]
[423023837,1779763850000,-156.587,0.00022769,2]
[423023841,1779763850000,-965.0,0.00023,2]
[423023839,1779763850000,-153.0571109,0.00023,2]
[423023838,1779763850000,-151.0,0.00023,2]
[423023840,1779763850000,-257.0,0.00023,2]
[423023792,1779763850000,-289.15744,0.0002217,2]
[423023835,1779763850000,-3597.61791044,0.00022769,2]
[423023819,1779763850000,-150.176,0.0002247,2]
[423023830,1779763850000,-423.21280573,0.00022496,2]
[423023814,1779763850000,-155.25917804,0.00022407,2]
[423023794,1779763850000,-2041.593492,0.0002217,2]
[423023816,1779763850000,-396.73,0.00022466,2]
[423023795,1779763850000,-2041.593492,0.0002217,2]
[423023797,1779763850000,-2041.593492,0.0002217,2]
[423023798,1779763850000,-151.0,0.0002217,2]
[423023799,1779763850000,-492.79943,0.0002217,2]
[423023796,1779763850000,-2041.593492,0.0002217,2]
[423023802,1779763850000,-492.79943,0.0002217,2]
[423023801,1779763850000,-492.79943,0.0002217,2]
[423023803,1779763850000,-151.0,0.0002217,2]
[423023808,1779763850000,-13246.79310833,0.0002217,2]
[423023800,1779763850000,-492.79943,0.0002217,2]
[423023811,1779763850000,-13736.92445333,0.00022225,2]
[423023806,1779763850000,-961.58486558,0.0002217,2]
[423023807,1779763850000,-151.0,0.0002217,2]
[423023804,1779763850000,-151.0,0.0002217,2]
[423023810,1779763850000,-151.0,0.00022225,2]
[423023809,1779763850000,-997.16350561,0.00022225,2]
[423023812,1779763850000,-2380.0,0.00022353,2]
[423023813,1779763850000,-155.25917805,0.00022407,2]
[423023815,1779763850000,-155.25917804,0.00022407,2]
[423023805,1779763850000,-151.0,0.0002217,2]
[423023817,1779763850000,-150.0,0.0002247,2]
[423023884,1779763851000,-3730.72977313,0.00024138,2]
[423023879,1779763851000,-836.08813944,0.00024,2]
[423023876,1779763851000,-266.09669251,0.00024,2]
[423023881,1779763851000,-345.33460784,0.00024,2]
[423023887,1779763851000,-500.0,0.00024139,2]
[423023872,1779763851000,-1377.42282658,0.00023592,2]
[423023867,1779763851000,-2005.9555727,0.00023592,2]
[423023869,1779763851000,-201.93286098,0.00023592,2]
[423023865,1779763851000,-200.0,0.00023592,2]
[423023878,1779763851000,-181.8097852,0.00024,2]
[423023877,1779763851000,-982.31734765,0.00024,2]
[423023880,1779763851000,-1611.2664537,0.00024,2]
[423023893,1779763851000,-891.61887448,0.0002414,2]
[423023885,1779763851000,-187.78006524,0.00024138,2]
[423023883,1779763851000,-450.0,0.0002401,2]
[423023886,1779763851000,-162.380719,0.00024138,2]
[423023889,1779763851000,-623.58710447,0.00024139,2]
[423023888,1779763851000,-599.60298507,0.00024139,2]
[423023891,1779763851000,-335.66323249,0.0002414,2]
[423023890,1779763851000,-209.40437684,0.0002414,2]
[423023892,1779763851000,-200.0,0.0002414,2]
[423023897,1779763851000,-200.0,0.0002414,2]
[423023894,1779763851000,-2080.17592889,0.0002414,2]
[423023870,1779763851000,-304.50852993,0.00023592,2]
[423023882,1779763851000,-437.4,0.0002401,2]
[423023868,1779763851000,-201.93286098,0.00023592,2]
[423023845,1779763851000,-342.0,0.00023,2]
[423023871,1779763851000,-200.0,0.00023592,2]
[423023842,1779763851000,-179.0,0.00023,2]
[423023844,1779763851000,-1597.0,0.00023,2]
[423023843,1779763851000,-830.0,0.00023,2]
[423023851,1779763851000,-194.72792766,0.00023044,2]
[423023850,1779763851000,-1934.38338736,0.00023044,2]
[423023846,1779763851000,-194.72792766,0.00023044,2]
[423023848,1779763851000,-200.0,0.00023044,2]
[423023852,1779763851000,-194.72792766,0.00023044,2]
[423023849,1779763851000,-829.12830338,0.00023044,2]
[423023847,1779763851000,-312.13772435,0.00023044,2]
[423023854,1779763851000,-200.0,0.00023044,2]
[423023864,1779763851000,-323.68682015,0.00023592,2]
[423023855,1779763851000,-1328.27659266,0.00023044,2]
[423023856,1779763851000,-309.90362447,0.00023142,2]
[423023857,1779763851000,-3547.0,0.00023211,2]
[423023863,1779763851000,-201.93286098,0.00023592,2]
[423023861,1779763851000,-418.0,0.00023211,2]
[423023859,1779763851000,-1355.0,0.00023211,2]
[423023853,1779763851000,-194.72792766,0.00023044,2]
[423023862,1779763851000,-931.0,0.00023211,2]
[423023860,1779763851000,-519.0,0.00023211,2]
[423023858,1779763851000,-928.0,0.00023211,2]
[423023866,1779763851000,-859.8060506,0.00023592,2]
[423023874,1779763851000,-151.0,0.00024,2]
[423023873,1779763851000,-500.0,0.00024,2]
[423023875,1779763851000,-151.0,0.00024,2]
[423023898,1779763851000,-1428.38747117,0.0002414,2]
[423023901,1779763851000,-943.56,0.00024323,2]
[423023895,1779763851000,-209.40437684,0.0002414,2]
[423023931,1779763851000,-436.707641,0.00024658,2]
[423023929,1779763851000,-436.707641,0.00024658,2]
[423023927,1779763851000,-436.707641,0.00024658,2]
[423023933,1779763851000,-436.707641,0.00024658,2]
[423023934,1779763851000,-436.707641,0.00024658,2]
[423023935,1779763851000,-436.707641,0.00024658,2]
[423023937,1779763851000,-436.707641,0.00024658,2]
[423023940,1779763851000,-265.3,0.00024658,2]
[423023943,1779763851000,-200.0,0.00024688,2]
[423023939,1779763851000,-1000.0,0.00024658,2]
[423023936,1779763851000,-436.707641,0.00024658,2]
[423023942,1779763851000,-465.54088325,0.00024688,2]
[423023941,1779763851000,-217.15233878,0.00024688,2]
[423023938,1779763851000,-436.707641,0.00024658,2]
[423023944,1779763851000,-924.60877283,0.00024688,2]
[423023946,1779763851000,-217.15233878,0.00024688,2]
[423023948,1779763851000,-200.0,0.00024688,2]
[423023952,1779763851000,-265.3,0.00024886,7]
[423023945,1779763851000,-2157.14243826,0.00024688,2]
[423023947,1779763851000,-217.15233878,0.00024688,2]
[423023949,1779763851000,-1481.2378076,0.00024688,2]
[423023951,1779763851000,-1647.3338628,0.00024801,2]
[423023950,1779763851000,-1020.0,0.000248,6]
[423023953,1779763851000,-937.97782678,0.00024899,2]
[423023896,1779763851000,-209.40437684,0.0002414,2]
[423023930,1779763851000,-436.707641,0.00024658,2]
[423023926,1779763851000,-436.707641,0.00024658,2]
[423023899,1779763851000,-943.56,0.00024321,2]
[423023924,1779763851000,-436.707641,0.00024658,2]
[423023900,1779763851000,-943.56,0.00024321,2]
[423023905,1779763851000,-943.57,0.00024325,2]
[423023904,1779763851000,-2380.0,0.00024324,2]
[423023906,1779763851000,-943.56,0.00024325,2]
[423023902,1779763851000,-943.56,0.00024323,2]
[423023928,1779763851000,-436.707641,0.00024658,2]
[423023909,1779763851000,-168.05,0.00024566,2]
[423023907,1779763851000,-943.56,0.00024325,2]
[423023908,1779763851000,-3133.28531061,0.00024333,2]
[423023911,1779763851000,-151.0,0.00024658,2]
[423023910,1779763851000,-799.91,0.00024658,2]
[423023912,1779763851000,-151.0,0.00024658,2]
[423023903,1779763851000,-943.56,0.00024323,2]
[423023914,1779763851000,-151.0,0.00024658,2]
[423023920,1779763851000,-151.0,0.00024658,2]
[423023925,1779763851000,-436.707641,0.00024658,2]
[423023923,1779763851000,-436.707641,0.00024658,2]
[423023921,1779763851000,-151.0,0.00024658,2]
[423023922,1779763851000,-199.420228,0.00024658,2]
[423023932,1779763851000,-436.707641,0.00024658,2]
[423023917,1779763851000,-151.0,0.00024658,2]
[423023918,1779763851000,-151.0,0.00024658,2]
[423023915,1779763851000,-151.0,0.00024658,2]
[423023913,1779763851000,-151.0,0.00024658,2]
[423023919,1779763851000,-151.0,0.00024658,2]
[423023916,1779763851000,-151.0,0.00024658,2]
[423023978,1779763852000,-3086.70016649,0.00025,2]
[423023986,1779763852000,-151.0,0.00025,2]
[423023979,1779763852000,-7230.30116901,0.00025,2]
[423023982,1779763852000,-164910.88157812,0.00025,2]
[423023980,1779763852000,-2231.81768262,0.00025,2]
[423023981,1779763852000,-169.7056057,0.00025,2]
[423023984,1779763852000,-536.46151091,0.00025,2]
[423023983,1779763852000,-422142.19016459,0.00025,2]
[423023985,1779763852000,-151.0,0.00025,2]
[423023990,1779763852000,-2041.593492,0.00025,2]
[423023999,1779763852000,-169.308741,0.00025,2]
[423023989,1779763852000,-2041.593492,0.00025,2]
[423023991,1779763852000,-2041.593492,0.00025,2]
[423023992,1779763852000,-2041.59349058,0.00025,2]
[423023993,1779763852000,-161.487625,0.00025,2]
[423023987,1779763852000,-151.0,0.00025,2]
[423023997,1779763852000,-492.799431,0.00025,2]
[423023996,1779763852000,-492.79943,0.00025,2]
[423023995,1779763852000,-492.79943,0.00025,2]
[423023977,1779763852000,-619.48446565,0.00025,2]
[423023988,1779763852000,-151.0,0.00025,2]
[423023974,1779763852000,-1810.36740368,0.00025,2]
[423023959,1779763852000,-151.0,0.00024999,2]
[423023976,1779763852000,-540.0,0.00025,2]
[423023954,1779763852000,-9300.0,0.000249,9]
[423023966,1779763852000,-289.15744,0.00024999,2]
[423023961,1779763852000,-436.707641,0.00024999,2]
[423023957,1779763852000,-773.51,0.00024909,7]
[423023955,1779763852000,-1220.86774724,0.000249,2]
[423023964,1779763852000,-289.15744,0.00024999,2]
[423023962,1779763852000,-436.707641,0.00024999,2]
[423023958,1779763852000,-937.97782678,0.00024972,2]
[423023956,1779763852000,-1600.0,0.000249,9]
[423023975,1779763852000,-1000.0,0.00025,2]
[423023998,1779763852000,-169.308741,0.00025,2]
[423023963,1779763852000,-436.707633,0.00024999,2]
[423023960,1779763852000,-436.707641,0.00024999,2]
[423023967,1779763852000,-289.157436,0.00024999,2]
[423023968,1779763852000,-151.30585863,0.00024999,20]
[423023972,1779763852000,-1129.82536491,0.00025,2]
[423023969,1779763852000,-1000.0,0.00024999,2]
[423023971,1779763852000,-1012.55967067,0.00024999,2]
[423023970,1779763852000,-1000.0,0.00024999,2]
[423023973,1779763852000,-210.45140216,0.00025,2]
[423023965,1779763852000,-289.15744,0.00024999,2]
[423024000,1779763852000,-169.308741,0.00025,2]
[423023994,1779763852000,-492.79943,0.00025,2]
[423024005,1779763852000,-167.478344,0.00025,2]
[423024032,1779763852000,-150.0,0.0002547,2]
[423024031,1779763852000,-937.97782678,0.00025406,7]
[423024038,1779763852000,-168.3888056,0.00025507,2]
[423024033,1779763852000,-150.0,0.0002547,2]
[423024037,1779763852000,-278.76430721,0.00025507,2]
[423024028,1779763852000,-212.31721,0.00025397,2]
[423024029,1779763852000,-200.80663092,0.00025397,2]
[423024034,1779763852000,-150.0,0.0002547,2]
[423024030,1779763852000,-317.964856,0.000254,2]
[423024035,1779763852000,-937.97782678,0.00025478,7]
[423024036,1779763852000,-3868.76677473,0.00025507,2]
[423024040,1779763852000,-265.3,0.00025572,7]
[423024039,1779763852000,-937.97782678,0.0002555,14]
[423024041,1779763852000,-2000.0,0.00025591,2]
[423024047,1779763852000,-1000.0,0.000256,2]
[423024044,1779763852000,-950.0,0.00025591,2]
[423024046,1779763852000,-272.35536234,0.000256,30]
[423024004,1779763852000,-167.478335,0.00025,2]
[423024045,1779763852000,-723.0,0.00025591,2]
[423024042,1779763852000,-1031.0,0.00025591,2]
[423024043,1779763852000,-950.0,0.00025591,2]
[423024026,1779763852000,-937.97782678,0.00025333,7]
[423024027,1779763852000,-265.3,0.00025343,2]
[423024048,1779763852000,-937.97782678,0.00025623,14]
[423024020,1779763852000,-2236.95670847,0.00025236,2]
[423024023,1779763852000,-200.0,0.00025236,2]
[423024001,1779763852000,-169.308733,0.00025,2]
[423024010,1779763852000,-937.97782678,0.00025044,2]
[423024007,1779763852000,-358.07,0.00025,2]
[423024006,1779763852000,-358.07,0.00025,2]
[423024011,1779763852000,-517.0,0.00025082,2]
[423024008,1779763852000,-358.07,0.00025,2]
[423024003,1779763852000,-167.478335,0.00025,2]
[423024009,1779763852000,-358.07,0.00025,2]
[423024012,1779763852000,-879.23,0.000251,2]
[423024002,1779763852000,-167.478335,0.00025,2]
[423024014,1779763852000,-937.97782678,0.00025116,7]
[423024013,1779763852000,-265.3,0.00025115,30]
[423024019,1779763852000,-958.81929743,0.00025236,2]
[423024018,1779763852000,-200.0,0.00025236,2]
[423024025,1779763852000,-937.97782678,0.00025261,7]
[423024021,1779763852000,-225.18697532,0.00025236,2]
[423024015,1779763852000,-937.97782678,0.00025189,7]
[423024017,1779763852000,-225.18697532,0.00025236,2]
[423024016,1779763852000,-215.42269777,0.000252,7]
[423024022,1779763852000,-225.18697532,0.00025236,2]
[423024024,1779763852000,-1536.04360648,0.00025236,2]
[423024071,1779763853000,-500.0,0.0002567,2]
[423024069,1779763853000,-500.0,0.0002567,2]
[423024078,1779763853000,-937.0,0.0002567,2]
[423024072,1779763853000,-500.0,0.0002567,2]
[423024075,1779763853000,-500.0,0.0002567,2]
[423024076,1779763853000,-500.0,0.0002567,2]
[423024074,1779763853000,-500.0,0.0002567,2]
[423024081,1779763853000,-500.0,0.0002567,2]
[423024083,1779763853000,-937.97782678,0.00025695,14]
[423024079,1779763853000,-500.0,0.0002567,2]
[423024084,1779763853000,-206.78,0.00025722,2]
[423024082,1779763853000,-558.0,0.0002567,2]
[423024085,1779763853000,-937.97782678,0.00025767,14]
[423024087,1779763853000,-208.03724204,0.00025784,2]
[423024090,1779763853000,-233.5188934,0.00025784,2]
[423024070,1779763853000,-500.0,0.0002567,2]
[423024086,1779763853000,-233.5188934,0.00025784,2]
[423024080,1779763853000,-500.0,0.0002567,2]
[423024068,1779763853000,-500.0,0.0002567,2]
[423024062,1779763853000,-500.0,0.0002567,2]
[423024067,1779763853000,-500.0,0.0002567,2]
[423024088,1779763853000,-994.29561143,0.00025784,2]
[423024050,1779763853000,-500.0,0.0002567,2]
[423024051,1779763853000,-500.0,0.0002567,2]
[423024049,1779763853000,-517.0,0.00025637,2]
[423024052,1779763853000,-500.0,0.0002567,2]
[423024054,1779763853000,-500.0,0.0002567,2]
[423024060,1779763853000,-500.0,0.0002567,2]
[423024061,1779763853000,-500.0,0.0002567,2]
[423024066,1779763853000,-500.0,0.0002567,2]
[423024057,1779763853000,-500.0,0.0002567,2]
[423024056,1779763853000,-500.0,0.0002567,2]
[423024055,1779763853000,-500.0,0.0002567,2]
[423024058,1779763853000,-500.0,0.0002567,2]
[423024053,1779763853000,-500.0,0.0002567,2]
[423024063,1779763853000,-500.0,0.0002567,2]
[423024065,1779763853000,-500.0,0.0002567,2]
[423024064,1779763853000,-500.0,0.0002567,2]
[423024077,1779763853000,-536.0,0.0002567,2]
[423024059,1779763853000,-500.0,0.0002567,2]
[423024089,1779763853000,-2319.72410669,0.00025784,2]
[423024073,1779763853000,-500.0,0.0002567,2]
[423024091,1779763853000,-233.5188934,0.00025784,2]
[423024112,1779763853000,-219.63664542,0.00026,2]
[423024115,1779763853000,-265.3,0.00026029,2]
[423024116,1779763853000,-937.97782678,0.00026056,30]
[423024118,1779763853000,-4488.0,0.000261,2]
[423024119,1779763853000,-450.11158405,0.000261,2]
[423024120,1779763853000,-280.0,0.000261,2]
[423024124,1779763853000,-2965.07320826,0.000262,2]
[423024121,1779763853000,-324.86524451,0.000261,2]
[423024113,1779763853000,-550.0,0.00026,2]
[423024122,1779763853000,-937.97782678,0.00026129,30]
[423024123,1779763853000,-517.0,0.00026192,3]
[423024127,1779763853000,-1401.602,0.00023211,2]
[423024126,1779763853000,-222.0,0.0002,5]
[423024132,1779763853000,-4458.41986343,0.000262,2]
[423024129,1779763853000,-4362.058,0.00023211,2]
[423024128,1779763853000,-298.34,0.00023211,2]
[423024131,1779763853000,-2441.42347013,0.000262,2]
[423024093,1779763853000,-1592.87721992,0.00025784,2]
[423024125,1779763853000,-608.50332161,0.000262,2]
[423024103,1779763853000,-2000.0,0.0002596,2]
[423024117,1779763853000,-922.0,0.00026058,3]
[423024109,1779763853000,-937.97782678,0.00025984,30]
[423024095,1779763853000,-265.3,0.000258,30]
[423024092,1779763853000,-200.0,0.00025784,2]
[423024097,1779763853000,-937.97782678,0.00025839,14]
[423024094,1779763853000,-1020.0,0.000258,7]
[423024096,1779763853000,-2327.0,0.00025803,3]
[423024110,1779763853000,-609.64161984,0.0002599,2]
[423024099,1779763853000,-2000.0,0.0002596,2]
[423024100,1779763853000,-2000.0,0.0002596,2]
[423024101,1779763853000,-2000.0,0.0002596,2]
[423024098,1779763853000,-937.97782678,0.00025912,14]
[423024107,1779763853000,-1350.0,0.0002596,2]
[423024108,1779763853000,-1315.0,0.0002596,2]
[423024106,1779763853000,-1350.0,0.0002596,2]
[423024105,1779763853000,-1350.0,0.0002596,2]
[423024104,1779763853000,-1467.0,0.0002596,2]
[423024111,1779763853000,-4588.99445923,0.00026,2]
[423024114,1779763853000,-334.0,0.00026027,2]
[423024130,1779763853000,-214.89,0.00024658,2]
[423024102,1779763853000,-2000.0,0.0002596,2]
[423024133,1779764420000,1444.1557,0.00028082,120]
[423024134,1779764743000,1167.74,0.00028082,120]
[423024135,1779764755000,161.25116133,0.00028082,120]
[423024136,1779764780000,2724.4507118,0.00010112,9]
[423024138,1779764940000,1000.0,0.00028081,120]
[423024184,1779765032000,-1693.75943073,0.00010112,9]
[423024183,1779765032000,-171.75759231,0.00010112,9]
[423024182,1779765032000,-300.0,0.00010111,2]
[423024186,1779765032000,-180.67594799,0.00010112,2]
[423024189,1779765032000,-90382.53168775,0.00013788,2]
[423024187,1779765032000,-2439.68619819,0.00013725,2]
[423024191,1779765032000,-34170.64797742,0.00013788,2]
[423024185,1779765032000,-10208.87637127,0.00010112,8]
[423024190,1779765032000,-250.0,0.00013788,2]
[423024188,1779765032000,-500.0,0.00013787,2]
[423024224,1779765038000,-618.5,0.00013788,2]
[423024235,1779765040000,-6688.32150543,0.00013788,2]
[423024251,1779765043000,-1261.43899111,0.00013788,2]
[423024252,1779765043000,-372.12613594,0.00013788,2]
[423024253,1779765044000,-396.94355835,0.00013788,2]
[423024260,1779765047000,-251.304526,0.00013788,2]
[423024261,1779765190000,5022.0,0.00028082,120]
[423024262,1779765191000,9463.45611844,0.00028081,120]
[423024333,1779765516000,162.87,0.00028082,120]
[423024334,1779765527000,289.7376387,0.0002,120]
[423024363,1779765800000,-15376.56432506,0.000107,2]